[Event "RUS-ch Blitz 2021"]
[Site "Sochi"]
[Date "2021.10.11"]
[Round "3.16"]
[White "Pogosyan, Stefan"]
[Black "Zubritskiy, Artyom"]
[Result "1-0"]
[ECO "A04"]
[WhiteElo "2407"]
[BlackElo "2442"]
[Annotator "ChessBase"]
[PlyCount "68"]
[EventDate "2021.10.11"]
[EventType "blitz"]
[EventCountry "RUS"]
[SourceTitle "playchess.com"]
[Source "ChessBase"]
[SourceQuality "1"]
[TimeControl "180+2"]

1. Nf3 {[%emt 0:00:00]} f5 {[%emt 0:00:06]} 2. b4 {[%emt 0:00:43]} Nf6 {
[%emt 0:00:14]} 3. Bb2 {[%emt 0:00:00]} e6 {[%emt 0:00:00]} 4. a3 {[%emt 0:00:
04]} c6 {[%emt 0:00:17]} 5. e3 {[%emt 0:00:12]} Be7 {[%emt 0:00:13]} 6. c4 {
[%emt 0:00:10]} d6 {[%emt 0:00:14]} 7. Be2 {[%emt 0:00:19]} O-O {[%emt 0:00:09]
} 8. O-O {[%emt 0:00:00]} Qc7 {[%emt 0:00:34]} 9. Nc3 {[%emt 0:00:04]} e5 {
[%emt 0:00:04]} 10. d3 {[%emt 0:00:24]} Kh8 {[%emt 0:00:00]} 11. Rc1 {[%emt 0:
00:25]} Be6 {[%emt 0:00:22]} 12. d4 {[%emt 0:00:30]} e4 {[%emt 0:00:06]} 13.
Ng5 {[%emt 0:00:00]} Bg8 {[%emt 0:00:00]} 14. d5 {[%emt 0:00:00]} Nbd7 {
[%emt 0:00:13]} 15. Qd2 {[%emt 0:00:05]} Ne5 {[%emt 0:00:05]} 16. Rfd1 {
[%emt 0:00:10]} Rad8 {[%emt 0:00:05]} 17. Qd4 {[%emt 0:00:06]} Qb8 {[%emt 0:00:
20]} 18. h4 {[%emt 0:00:11]} Nfg4 {[%emt 0:00:10]} 19. dxc6 {[%emt 0:00:05]}
bxc6 {[%emt 0:00:04]} 20. Ncxe4 {[%emt 0:00:00]} c5 {[%emt 0:00:14]} 21. Qc3 {
[%emt 0:00:06]} fxe4 {[%emt 0:00:03]} 22. Bxg4 {[%emt 0:00:00]} Bf6 {[%emt 0:
00:00]} 23. Nxe4 {[%emt 0:00:05]} Nxg4 {[%emt 0:00:05]} 24. Nxf6 {[%emt 0:00:
06]} Nxf6 {[%emt 0:00:00]} 25. Rd2 {[%emt 0:00:03]} Qc7 {[%emt 0:00:05]} 26. f3
{[%emt 0:00:00]} a6 {[%emt 0:00:08]} 27. Rcd1 {[%emt 0:00:00]} cxb4 {[%emt 0:
00:00]} 28. axb4 {[%emt 0:00:00]} Qxc4 {[%emt 0:00:00]} 29. Qxc4 {[%emt 0:00:
06]} Bxc4 {[%emt 0:00:04]} 30. Rxd6 {[%emt 0:00:00]} Rxd6 {[%emt 0:00:00]} 31.
Rxd6 {[%emt 0:00:00]} Nd5 {[%emt 0:00:07]} 32. Rd7 {[%emt 0:00:02]} Rg8 {
[%emt 0:00:02]} 33. h5 {[%emt 0:00:09]} h6 {[%emt 0:00:02]} 34. e4 {[%emt 0:00:
00]} Nxb4 {[%emt 0:00:02]} 1-0

[Event "RUS-ch Blitz 2021"]
[Site "Sochi"]
[Date "2021.10.11"]
[Round "3.17"]
[White "Gavrilov, Oleg"]
[Black "Zakhartsov, Vladimir"]
[Result "1-0"]
[ECO "A28"]
[WhiteElo "2356"]
[BlackElo "2514"]
[Annotator "ChessBase"]
[PlyCount "141"]
[EventDate "2021.10.11"]
[EventType "blitz"]
[EventCountry "RUS"]
[SourceTitle "playchess.com"]
[Source "ChessBase"]
[SourceQuality "1"]
[TimeControl "180+2"]

1. c4 {[%emt 0:00:05]} e5 {[%emt 0:00:00]} 2. Nc3 {[%emt 0:00:00]} Nf6 {
[%emt 0:00:00]} 3. Nf3 {[%emt 0:00:00]} Nc6 {[%emt 0:00:06]} 4. e3 {[%emt 0:00:
01]} Bb4 {[%emt 0:00:00]} 5. Nd5 {[%emt 0:00:02]} Bc5 {[%emt 0:00:14]} 6. d4 {
[%emt 0:00:17]} exd4 {[%emt 0:00:17]} 7. exd4 {[%emt 0:00:00]} Nxd5 {[%emt 0:
00:22]} 8. dxc5 {[%emt 0:00:07]} Nde7 {[%emt 0:00:05]} 9. Bd3 {[%emt 0:00:10]}
b6 {[%emt 0:00:16]} 10. Be3 {[%emt 0:00:03]} bxc5 {[%emt 0:00:09]} 11. Bxc5 {
[%emt 0:00:00]} d6 {[%emt 0:00:03]} 12. Be3 {[%emt 0:00:08]} O-O {[%emt 0:00:
02]} 13. O-O {[%emt 0:00:00]} Bf5 {[%emt 0:00:00]} 14. Nd4 {[%emt 0:00:12]}
Bxd3 {[%emt 0:00:07]} 15. Nxc6 {[%emt 0:00:17]} Nxc6 {[%emt 0:00:00]} 16. Qxd3
{[%emt 0:00:03]} Re8 {[%emt 0:00:22]} 17. Rfe1 {[%emt 0:00:00]} a5 {[%emt 0:00:
00]} 18. h3 {[%emt 0:00:24]} Qf6 {[%emt 0:00:08]} 19. Qc2 {[%emt 0:00:16]} Rab8
{[%emt 0:00:05]} 20. b3 {[%emt 0:00:00]} h6 {[%emt 0:00:00]} 21. Rad1 {[%emt 0:
00:00]} a4 {[%emt 0:00:16]} 22. c5 {[%emt 0:00:28]} axb3 {[%emt 0:00:04]} 23.
axb3 {[%emt 0:00:00]} d5 {[%emt 0:00:00]} 24. Qd3 {[%emt 0:00:33]} Nb4 {
[%emt 0:00:12]} 25. Qd2 {[%emt 0:00:08]} Re4 {[%emt 0:00:32]} 26. Bd4 {[%emt 0:
00:00]} Qg6 {[%emt 0:00:00]} 27. Bc3 {[%emt 0:00:00]} Rxe1+ {[%emt 0:00:00]}
28. Rxe1 {[%emt 0:00:00]} Nd3 {[%emt 0:00:15]} 29. Re3 {[%emt 0:00:27]} Nxc5 {
[%emt 0:00:06]} 30. Rg3 {[%emt 0:00:13]} Ne4 {[%emt 0:00:15]} 31. Rxg6 {
[%emt 0:00:00]} Nxd2 {[%emt 0:00:00]} 32. Rxg7+ {[%emt 0:00:00]} Kf8 {[%emt 0:
00:02]} 33. Rh7 {[%emt 0:00:05]} Ne4 {[%emt 0:00:07]} 34. Rh8+ {[%emt 0:00:00]}
Ke7 {[%emt 0:00:00]} 35. Rxb8 {[%emt 0:00:08]} Nxc3 {[%emt 0:00:00]} 36. Kf1 {
[%emt 0:00:03]} c5 {[%emt 0:00:06]} 37. Rb6 {[%emt 0:00:00]} f6 {[%emt 0:00:02]
} 38. g4 {[%emt 0:00:00]} Ne4 {[%emt 0:00:02]} 39. f3 {[%emt 0:00:01]} Nc3 {
[%emt 0:00:03]} 40. h4 {[%emt 0:00:02]} d4 {[%emt 0:00:00]} 41. Ke1 {[%emt 0:
00:04]} Nd5 {[%emt 0:00:03]} 42. Rc6 {[%emt 0:00:00]} Nb4 {[%emt 0:00:00]} 43.
Rb6 {[%emt 0:00:04]} Nd5 {[%emt 0:00:01]} 44. Ra6 {[%emt 0:00:04]} Nb4 {
[%emt 0:00:00]} 45. Ra7+ {[%emt 0:00:00]} Ke6 {[%emt 0:00:04]} 46. Rh7 {
[%emt 0:00:01]} Ke5 {[%emt 0:00:02]} 47. Rxh6 {[%emt 0:00:02]} Nc2+ {[%emt 0:
00:05]} 48. Ke2 {[%emt 0:00:00]} Na1 {[%emt 0:00:01]} 49. Rh5+ {[%emt 0:00:06]}
Kd6 {[%emt 0:00:02]} 50. Rf5 {[%emt 0:00:00]} Nxb3 {[%emt 0:00:00]} 51. Rxf6+ {
[%emt 0:00:00]} Kd5 {[%emt 0:00:02]} 52. h5 {[%emt 0:00:01]} c4 {[%emt 0:00:02]
} 53. h6 {[%emt 0:00:02]} d3+ {[%emt 0:00:00]} 54. Ke3 {[%emt 0:00:01]} d2 {
[%emt 0:00:04]} 55. Rf8 {[%emt 0:00:06]} c3 {[%emt 0:00:02]} 56. Rd8+ {[%emt 0:
00:02]} Ke6 {[%emt 0:00:03]} 57. h7 {[%emt 0:00:02]} c2 {[%emt 0:00:04]} 58.
h8=Q {[%emt 0:00:00]} d1=N+ {[%emt 0:00:03]} 59. Ke2 {[%emt 0:00:03]} Nc3+ {
[%emt 0:00:01]} 60. Qxc3 {[%emt 0:00:03]} c1=Q {[%emt 0:00:02]} 61. Qxc1 {
[%emt 0:00:02]} Nxc1+ {[%emt 0:00:00]} 62. Ke3 {[%emt 0:00:00]} Nb3 {[%emt 0:
00:01]} 63. f4 {[%emt 0:00:03]} Nc5 {[%emt 0:00:01]} 64. Rd4 {[%emt 0:00:00]}
Kf7 {[%emt 0:00:03]} 65. Rd6 {[%emt 0:00:01]} Ke7 {[%emt 0:00:00]} 66. Rc6 {
[%emt 0:00:02]} Nb3 {[%emt 0:00:04]} 67. g5 {[%emt 0:00:02]} Kd7 {[%emt 0:00:
01]} 68. Rc3 {[%emt 0:00:01]} Na5 {[%emt 0:00:00]} 69. f5 {[%emt 0:00:02]} Nb7
{[%emt 0:00:02]} 70. Kf4 {[%emt 0:00:02]} Ke8 {[%emt 0:00:00]} 71. Rc6 {
[%emt 0:00:01]} 1-0

[Event "RUS-ch Blitz 2021"]
[Site "Sochi"]
[Date "2021.10.11"]
[Round "3.18"]
[White "Bocharov, Dmitry"]
[Black "Smirnov, Timofey"]
[Result "1-0"]
[ECO "A07"]
[WhiteElo "2517"]
[BlackElo "2409"]
[Annotator "ChessBase"]
[PlyCount "76"]
[EventDate "2021.10.11"]
[EventType "blitz"]
[EventCountry "RUS"]
[SourceTitle "playchess.com"]
[Source "ChessBase"]
[SourceQuality "1"]
[TimeControl "180+2"]

1. Nf3 {[%emt 0:00:06]} d5 {[%emt 0:00:00]} 2. g3 {[%emt 0:00:04]} g6 {[%emt 0:
00:01]} 3. Bg2 {[%emt 0:00:02]} Bg7 {[%emt 0:00:07]} 4. O-O {[%emt 0:00:00]} e5
{[%emt 0:00:00]} 5. d3 {[%emt 0:00:07]} Ne7 {[%emt 0:00:00]} 6. e4 {[%emt 0:00:
04]} O-O {[%emt 0:00:08]} 7. Nbd2 {[%emt 0:00:09]} Nbc6 {[%emt 0:00:25]} 8. Re1
{[%emt 0:00:11]} Re8 {[%emt 0:00:00]} 9. a3 {[%emt 0:00:05]} a5 {[%emt 0:00:08]
} 10. exd5 {[%emt 0:00:18]} Nxd5 {[%emt 0:00:00]} 11. Ne4 {[%emt 0:00:04]} h6 {
[%emt 0:00:08]} 12. Bd2 {[%emt 0:00:09]} f5 {[%emt 0:00:06]} 13. Nc3 {[%emt 0:
00:01]} Be6 {[%emt 0:00:00]} 14. Na4 {[%emt 0:00:25]} Qd6 {[%emt 0:00:15]} 15.
c4 {[%emt 0:00:04]} Nde7 {[%emt 0:00:27]} 16. Bc3 {[%emt 0:00:05]} Rad8 {
[%emt 0:00:17]} 17. Qe2 {[%emt 0:00:00]} Bd7 {[%emt 0:00:45]} 18. b4 {[%emt 0:
00:33]} axb4 {[%emt 0:00:34]} 19. axb4 {[%emt 0:00:00]} e4 {[%emt 0:00:13]} 20.
dxe4 {[%emt 0:00:11]} Bxc3 {[%emt 0:00:00]} 21. Nxc3 {[%emt 0:00:03]} Qxb4 {
[%emt 0:00:00]} 22. Rac1 {[%emt 0:00:42]} Na5 {[%emt 0:00:08]} 23. Ne5 {
[%emt 0:00:05]} Be6 {[%emt 0:00:04]} 24. Nd5 {[%emt 0:00:06]} Bxd5 {[%emt 0:00:
00]} 25. exd5 {[%emt 0:00:02]} Qd6 {[%emt 0:00:04]} 26. Qe3 {[%emt 0:00:06]}
Kg7 {[%emt 0:00:00]} 27. c5 {[%emt 0:00:00]} Qf6 {[%emt 0:00:04]} 28. Rcd1 {
[%emt 0:00:00]} b6 {[%emt 0:00:02]} 29. cxb6 {[%emt 0:00:09]} cxb6 {[%emt 0:00:
00]} 30. Qf4 {[%emt 0:00:06]} g5 {[%emt 0:00:00]} 31. Qb4 {[%emt 0:00:02]} Nb7
{[%emt 0:00:00]} 32. Nc6 {[%emt 0:00:00]} Nxc6 {[%emt 0:00:08]} 33. dxc6 {
[%emt 0:00:00]} Rxe1+ {[%emt 0:00:02]} 34. Rxe1 {[%emt 0:00:00]} Nc5 {[%emt 0:
00:00]} 35. Qxb6 {[%emt 0:00:04]} Nd3 {[%emt 0:00:01]} 36. Qc7+ {[%emt 0:00:01]
} Kf8 {[%emt 0:00:05]} 37. Re6 {[%emt 0:00:00]} Qa1+ {[%emt 0:00:00]} 38. Bf1 {
[%emt 0:00:06]} Qb2 {[%emt 0:00:01]} 1-0

[Event "RUS-ch Blitz 2021"]
[Site "Sochi"]
[Date "2021.10.11"]
[Round "3.19"]
[White "Savchenko, Boris"]
[Black "Indzhiev, Aldar"]
[Result "0-1"]
[ECO "B11"]
[WhiteElo "2535"]
[BlackElo "2101"]
[Annotator "ChessBase"]
[PlyCount "72"]
[EventDate "2021.10.11"]
[EventType "blitz"]
[EventCountry "RUS"]
[SourceTitle "playchess.com"]
[Source "ChessBase"]
[SourceQuality "1"]
[TimeControl "180+2"]

1. e4 {[%emt 0:00:00]} c6 {[%emt 0:00:04]} 2. Nc3 {[%emt 0:00:01]} d5 {[%emt 0:
00:00]} 3. Nf3 {[%emt 0:00:00]} Bg4 {[%emt 0:00:03]} 4. h3 {[%emt 0:00:05]}
Bxf3 {[%emt 0:00:02]} 5. gxf3 {[%emt 0:00:00]} d4 {[%emt 0:00:04]} 6. Ne2 {
[%emt 0:00:07]} c5 {[%emt 0:00:00]} 7. f4 {[%emt 0:00:02]} Nc6 {[%emt 0:00:02]}
8. Ng1 {[%emt 0:00:04]} Nf6 {[%emt 0:00:16]} 9. d3 {[%emt 0:00:08]} Qc7 {
[%emt 0:00:11]} 10. Bg2 {[%emt 0:00:00]} O-O-O {[%emt 0:00:16]} 11. a3 {
[%emt 0:00:08]} e5 {[%emt 0:00:14]} 12. fxe5 {[%emt 0:00:10]} Nxe5 {[%emt 0:00:
00]} 13. f4 {[%emt 0:00:03]} Ng6 {[%emt 0:00:04]} 14. e5 {[%emt 0:00:12]} Nd5 {
[%emt 0:00:00]} 15. Qg4+ {[%emt 0:00:08]} Kb8 {[%emt 0:00:10]} 16. Ne2 {
[%emt 0:00:17]} Be7 {[%emt 0:00:21]} 17. h4 {[%emt 0:00:42]} h5 {[%emt 0:00:07]
} 18. Qg3 {[%emt 0:00:02]} c4 {[%emt 0:00:08]} 19. f5 {[%emt 0:00:17]} Nxe5 {
[%emt 0:00:14]} 20. dxc4 {[%emt 0:00:29]} Nxc4 {[%emt 0:00:03]} 21. Qxc7+ {
[%emt 0:00:01]} Nxc7 {[%emt 0:00:07]} 22. Be4 {[%emt 0:00:20]} Rhe8 {[%emt 0:
00:00]} 23. Bf4 {[%emt 0:00:03]} Bd6 {[%emt 0:00:06]} 24. Bxd6 {[%emt 0:00:03]}
Rxe4 {[%emt 0:00:08]} 25. Bxc7+ {[%emt 0:00:05]} Kxc7 {[%emt 0:00:00]} 26. Kf2
{[%emt 0:00:09]} Rde8 {[%emt 0:00:00]} 27. Rae1 {[%emt 0:00:00]} Ne3 {[%emt 0:
00:08]} 28. Kf3 {[%emt 0:00:15]} Nxc2 {[%emt 0:00:09]} 29. Rc1 {[%emt 0:00:01]}
Rxe2 {[%emt 0:00:02]} 30. Rhg1 {[%emt 0:00:03]} d3 {[%emt 0:00:09]} 31. Rxg7 {
[%emt 0:00:01]} R8e3+ {[%emt 0:00:07]} 32. Kf4 {[%emt 0:00:02]} Rf2+ {[%emt 0:
00:00]} 33. Kg5 {[%emt 0:00:07]} Rg3+ {[%emt 0:00:00]} 34. Kh6 {[%emt 0:00:00]}
Rxg7 {[%emt 0:00:06]} 35. Kxg7 {[%emt 0:00:00]} Rxf5 {[%emt 0:00:00]} 36. Rd1 {
[%emt 0:00:03]} Rd5 {[%emt 0:00:00]} 0-1

[Event "RUS-ch Blitz 2021"]
[Site "Sochi"]
[Date "2021.10.11"]
[Round "3.21"]
[White "Nozdrachev, Vladislav"]
[Black "Somkin, Kirill"]
[Result "0-1"]
[ECO "B04"]
[WhiteElo "2495"]
[BlackElo "2186"]
[Annotator "ChessBase"]
[PlyCount "101"]
[EventDate "2021.10.11"]
[EventType "blitz"]
[EventCountry "RUS"]
[SourceTitle "playchess.com"]
[Source "ChessBase"]
[SourceQuality "1"]
[TimeControl "180+2"]

1. e4 {[%emt 0:00:00]} Nf6 {[%emt 0:00:00]} 2. e5 {[%emt 0:00:06]} Nd5 {
[%emt 0:00:00]} 3. d4 {[%emt 0:00:00]} d6 {[%emt 0:00:00]} 4. c4 {[%emt 0:00:
00]} Nb6 {[%emt 0:00:00]} 5. exd6 {[%emt 0:00:04]} cxd6 {[%emt 0:00:04]} 6. Nc3
{[%emt 0:00:18]} g6 {[%emt 0:00:00]} 7. h3 {[%emt 0:00:00]} Bg7 {[%emt 0:00:00]
} 8. Nf3 {[%emt 0:00:00]} O-O {[%emt 0:00:00]} 9. Be2 {[%emt 0:00:00]} Nc6 {
[%emt 0:00:23]} 10. O-O {[%emt 0:00:00]} Bf5 {[%emt 0:00:10]} 11. d5 {[%emt 0:
00:20]} Na5 {[%emt 0:00:29]} 12. Nd4 {[%emt 0:00:05]} Naxc4 {[%emt 0:00:23]}
13. Bxc4 {[%emt 0:00:02]} Nxc4 {[%emt 0:00:00]} 14. Nxf5 {[%emt 0:00:00]} gxf5
{[%emt 0:00:05]} 15. Qd3 {[%emt 0:00:00]} Qc8 {[%emt 0:00:04]} 16. Bg5 {
[%emt 0:00:18]} Ne5 {[%emt 0:00:01]} 17. Qe2 {[%emt 0:00:12]} Qd7 {[%emt 0:00:
08]} 18. Rfe1 {[%emt 0:00:00]} Ng6 {[%emt 0:00:08]} 19. h4 {[%emt 0:00:32]} h6
{[%emt 0:00:31]} 20. Bd2 {[%emt 0:00:00]} Rfe8 {[%emt 0:00:07]} 21. Qh5 {
[%emt 0:00:29]} Kh7 {[%emt 0:00:23]} 22. Re3 {[%emt 0:00:05]} e6 {[%emt 0:00:
30]} 23. dxe6 {[%emt 0:00:23]} fxe6 {[%emt 0:00:00]} 24. Rae1 {[%emt 0:00:00]}
Qf7 {[%emt 0:00:00]} 25. Nb5 {[%emt 0:00:00]} Rad8 {[%emt 0:00:20]} 26. Rg3 {
[%emt 0:00:00]} e5 {[%emt 0:00:00]} 27. Bb4 {[%emt 0:00:23]} Re6 {[%emt 0:00:
03]} 28. Rf3 {[%emt 0:00:11]} f4 {[%emt 0:00:03]} 29. Qg4 {[%emt 0:00:00]} Nf8
{[%emt 0:00:03]} 30. h5 {[%emt 0:00:16]} a6 {[%emt 0:00:00]} 31. Nc3 {[%emt 0:
00:00]} d5 {[%emt 0:00:00]} 32. Bxf8 {[%emt 0:00:00]} Bxf8 {[%emt 0:00:09]} 33.
Rxf4 {[%emt 0:00:00]} Rf6 {[%emt 0:00:00]} 34. Qg6+ {[%emt 0:00:14]} Qxg6 {
[%emt 0:00:00]} 35. hxg6+ {[%emt 0:00:00]} Kxg6 {[%emt 0:00:06]} 36. Rg4+ {
[%emt 0:00:07]} Kf5 {[%emt 0:00:00]} 37. Rg8 {[%emt 0:00:00]} d4 {[%emt 0:00:
00]} 38. Ne4 {[%emt 0:00:05]} Rf7 {[%emt 0:00:00]} 39. Nd6+ {[%emt 0:00:02]}
Rxd6 {[%emt 0:00:02]} 40. g4+ {[%emt 0:00:02]} Ke6 {[%emt 0:00:02]} 41. Kg2 {
[%emt 0:00:00]} Kd5 {[%emt 0:00:06]} 42. f3 {[%emt 0:00:00]} Rdf6 {[%emt 0:00:
00]} 43. Rf1 {[%emt 0:00:07]} Bd6 {[%emt 0:00:00]} 44. Rc8 {[%emt 0:00:00]} Rc7
{[%emt 0:00:02]} 45. Rd8 {[%emt 0:00:00]} Rc2+ {[%emt 0:00:00]} 46. Kg3 {
[%emt 0:00:00]} e4+ {[%emt 0:00:02]} 47. f4 {[%emt 0:00:02]} Ke6 {[%emt 0:00:
05]} 48. Re8+ {[%emt 0:00:08]} Kd5 {[%emt 0:00:00]} 49. Rd8 {[%emt 0:00:00]} e3
{[%emt 0:00:02]} 50. Kh4 {[%emt 0:00:06]} e2 {[%emt 0:00:02]} 51. f5 {[%emt 0:
00:04]} 0-1

[Event "RUS-ch Blitz 2021"]
[Site "Sochi"]
[Date "2021.10.11"]
[Round "3.22"]
[White "Magomedov, Rashid"]
[Black "Murzin, Volodar"]
[Result "0-1"]
[ECO "B10"]
[WhiteElo "2167"]
[BlackElo "2513"]
[Annotator "ChessBase"]
[PlyCount "55"]
[EventDate "2021.10.11"]
[EventType "blitz"]
[EventCountry "RUS"]
[SourceTitle "playchess.com"]
[Source "ChessBase"]
[SourceQuality "1"]
[TimeControl "180+2"]

1. e4 {[%emt 0:00:00]} c6 {[%emt 0:00:05]} 2. d3 {[%emt 0:00:10]} d5 {[%emt 0:
00:00]} 3. Nd2 {[%emt 0:00:03]} g6 {[%emt 0:00:01]} 4. g3 {[%emt 0:00:00]} Bg7
{[%emt 0:00:07]} 5. Bg2 {[%emt 0:00:00]} e5 {[%emt 0:00:04]} 6. Ngf3 {[%emt 0:
00:05]} Ne7 {[%emt 0:00:00]} 7. O-O {[%emt 0:00:04]} O-O {[%emt 0:00:00]} 8.
Re1 {[%emt 0:00:02]} d4 {[%emt 0:00:06]} 9. Nc4 {[%emt 0:00:46]} b5 {[%emt 0:
00:00]} 10. Ncd2 {[%emt 0:01:02]} a5 {[%emt 0:00:35]} 11. Nf1 {[%emt 0:00:12]}
a4 {[%emt 0:00:11]} 12. a3 {[%emt 0:00:10]} c5 {[%emt 0:00:04]} 13. h3 {
[%emt 0:00:00]} Nbc6 {[%emt 0:00:00]} 14. N1h2 {[%emt 0:00:00]} c4 {[%emt 0:00:
29]} 15. Nh4 {[%emt 0:00:01]} Be6 {[%emt 0:00:03]} 16. f4 {[%emt 0:00:10]} cxd3
{[%emt 0:00:04]} 17. cxd3 {[%emt 0:00:03]} Rc8 {[%emt 0:00:19]} 18. Qf3 {
[%emt 0:00:29]} f5 {[%emt 0:00:51]} 19. exf5 {[%emt 0:00:00]} Nxf5 {[%emt 0:00:
21]} 20. Nxf5 {[%emt 0:00:00]} Bxf5 {[%emt 0:00:00]} 21. g4 {[%emt 0:00:18]}
Be6 {[%emt 0:00:00]} 22. Qg3 {[%emt 0:00:06]} Na5 {[%emt 0:00:00]} 23. fxe5 {
[%emt 0:00:00]} Nb3 {[%emt 0:00:04]} 24. Rb1 {[%emt 0:00:00]} Rc2 {[%emt 0:00:
16]} 25. Bf4 {[%emt 0:00:09]} g5 {[%emt 0:00:05]} 26. Bc1 {[%emt 0:00:00]} h6 {
[%emt 0:00:04]} 27. Nf3 {[%emt 0:00:00]} Qc7 {[%emt 0:00:03]} 28. Bxg5 {
[%emt 0:00:06]} 0-1

[Event "RUS-ch Blitz 2021"]
[Site "Sochi"]
[Date "2021.10.11"]
[Round "3.23"]
[White "Lysyj, Igor"]
[Black "Popov, Maksim"]
[Result "1-0"]
[ECO "E01"]
[WhiteElo "2603"]
[BlackElo "2179"]
[Annotator "ChessBase"]
[PlyCount "119"]
[EventDate "2021.10.11"]
[EventType "blitz"]
[EventCountry "RUS"]
[SourceTitle "playchess.com"]
[Source "ChessBase"]
[SourceQuality "1"]
[TimeControl "180+2"]

1. d4 {[%emt 0:00:00]} Nf6 {[%emt 0:00:00]} 2. c4 {[%emt 0:00:00]} e6 {[%emt 0:
00:05]} 3. Nf3 {[%emt 0:00:04]} d5 {[%emt 0:00:00]} 4. g3 {[%emt 0:00:00]} Bb4+
{[%emt 0:00:03]} 5. Bd2 {[%emt 0:00:00]} Bd6 {[%emt 0:00:00]} 6. Bg2 {[%emt 0:
00:00]} O-O {[%emt 0:00:02]} 7. O-O {[%emt 0:00:03]} Nbd7 {[%emt 0:00:00]} 8.
Bc3 {[%emt 0:00:11]} c6 {[%emt 0:00:11]} 9. Nbd2 {[%emt 0:00:00]} Qe7 {[%emt 0:
00:03]} 10. Ne5 {[%emt 0:00:08]} c5 {[%emt 0:00:16]} 11. e3 {[%emt 0:00:08]} b6
{[%emt 0:00:06]} 12. Nxd7 {[%emt 0:00:19]} Bxd7 {[%emt 0:00:18]} 13. dxc5 {
[%emt 0:00:00]} Bxc5 {[%emt 0:00:39]} 14. Bxf6 {[%emt 0:00:09]} Qxf6 {[%emt 0:
00:00]} 15. cxd5 {[%emt 0:00:00]} exd5 {[%emt 0:00:03]} 16. Bxd5 {[%emt 0:00:
08]} Rad8 {[%emt 0:00:13]} 17. Qb3 {[%emt 0:00:45]} Be6 {[%emt 0:00:32]} 18.
Ne4 {[%emt 0:00:27]} Qe5 {[%emt 0:00:00]} 19. Bxe6 {[%emt 0:00:03]} Qxe4 {
[%emt 0:00:00]} 20. Bc4 {[%emt 0:00:07]} h5 {[%emt 0:00:25]} 21. Rad1 {[%emt 0:
00:07]} Qf3 {[%emt 0:00:13]} 22. Bd5 {[%emt 0:00:07]} Qf6 {[%emt 0:00:03]} 23.
h4 {[%emt 0:00:10]} Bd6 {[%emt 0:00:09]} 24. Rd3 {[%emt 0:00:08]} Be5 {[%emt 0:
00:06]} 25. Rfd1 {[%emt 0:00:08]} Kh8 {[%emt 0:00:02]} 26. Bc4 {[%emt 0:00:16]}
Rc8 {[%emt 0:00:07]} 27. Rd7 {[%emt 0:00:03]} Bxb2 {[%emt 0:00:10]} 28. Bxf7 {
[%emt 0:00:11]} a5 {[%emt 0:00:07]} 29. Qd5 {[%emt 0:00:10]} Rc5 {[%emt 0:00:
05]} 30. Qe6 {[%emt 0:00:00]} Qxe6 {[%emt 0:00:02]} 31. Bxe6 {[%emt 0:00:00]}
Bf6 {[%emt 0:00:00]} 32. Rf7 {[%emt 0:00:07]} Re8 {[%emt 0:00:04]} 33. Bb3 {
[%emt 0:00:00]} b5 {[%emt 0:00:00]} 34. Ra7 {[%emt 0:00:03]} a4 {[%emt 0:00:02]
} 35. Bf7 {[%emt 0:00:00]} Rec8 {[%emt 0:00:03]} 36. Bg6 {[%emt 0:00:00]} Bb2 {
[%emt 0:00:01]} 37. Kg2 {[%emt 0:00:08]} a3 {[%emt 0:00:00]} 38. Rb7 {[%emt 0:
00:00]} Bc3 {[%emt 0:00:00]} 39. Rdd7 {[%emt 0:00:02]} b4 {[%emt 0:00:02]} 40.
Bf7 {[%emt 0:00:03]} Rf8 {[%emt 0:00:01]} 41. Bb3 {[%emt 0:00:03]} Rcf5 {
[%emt 0:00:01]} 42. f4 {[%emt 0:00:01]} Rc5 {[%emt 0:00:01]} 43. Rd5 {[%emt 0:
00:02]} Rxd5 {[%emt 0:00:07]} 44. Bxd5 {[%emt 0:00:00]} Kh7 {[%emt 0:00:02]}
45. Bb3 {[%emt 0:00:00]} Rd8 {[%emt 0:00:00]} 46. Kf3 {[%emt 0:00:04]} Rd2 {
[%emt 0:00:00]} 47. e4 {[%emt 0:00:02]} Rb2 {[%emt 0:00:06]} 48. Ra7 {[%emt 0:
00:00]} Rb1 {[%emt 0:00:00]} 49. e5 {[%emt 0:00:03]} Re1 {[%emt 0:00:00]} 50.
Bc2+ {[%emt 0:00:01]} Kg8 {[%emt 0:00:05]} 51. Bg6 {[%emt 0:00:02]} Kf8 {
[%emt 0:00:03]} 52. Rf7+ {[%emt 0:00:00]} Ke8 {[%emt 0:00:03]} 53. Rxg7+ {
[%emt 0:00:03]} Kd8 {[%emt 0:00:00]} 54. Ra7 {[%emt 0:00:02]} Bb2 {[%emt 0:00:
06]} 55. Bf7 {[%emt 0:00:01]} Rf1+ {[%emt 0:00:02]} 56. Ke4 {[%emt 0:00:00]}
Rg1 {[%emt 0:00:00]} 57. Kf5 {[%emt 0:00:02]} Rxg3 {[%emt 0:00:03]} 58. Bd5 {
[%emt 0:00:02]} Rg4 {[%emt 0:00:02]} 59. e6 {[%emt 0:00:03]} Bc1 {[%emt 0:00:
00]} 60. e7+ {[%emt 0:00:01]} 1-0

[Event "RUS-ch Blitz 2021"]
[Site "Sochi"]
[Date "2021.10.11"]
[Round "3.24"]
[White "Sakaev, Konstantin"]
[Black "Bychkov, Vladimir"]
[Result "1/2-1/2"]
[ECO "E46"]
[WhiteElo "2603"]
[BlackElo "2303"]
[Annotator "ChessBase"]
[PlyCount "84"]
[EventDate "2021.10.11"]
[EventType "blitz"]
[EventCountry "RUS"]
[SourceTitle "playchess.com"]
[Source "ChessBase"]
[SourceQuality "1"]
[TimeControl "180+2"]

1. d4 {[%emt 0:00:00]} Nf6 {[%emt 0:00:00]} 2. c4 {[%emt 0:00:00]} e6 {[%emt 0:
00:05]} 3. Nc3 {[%emt 0:00:04]} Bb4 {[%emt 0:00:00]} 4. e3 {[%emt 0:00:00]} c5
{[%emt 0:00:03]} 5. Nge2 {[%emt 0:00:02]} O-O {[%emt 0:00:03]} 6. a3 {[%emt 0:
00:00]} Bxc3+ {[%emt 0:00:04]} 7. Nxc3 {[%emt 0:00:01]} d6 {[%emt 0:00:07]} 8.
Be2 {[%emt 0:00:26]} Nc6 {[%emt 0:00:23]} 9. d5 {[%emt 0:00:06]} exd5 {[%emt 0:
00:00]} 10. cxd5 {[%emt 0:00:03]} Ne7 {[%emt 0:00:23]} 11. O-O {[%emt 0:00:04]}
a6 {[%emt 0:00:14]} 12. a4 {[%emt 0:00:00]} b6 {[%emt 0:00:00]} 13. e4 {
[%emt 0:00:03]} Bd7 {[%emt 0:00:19]} 14. Bf4 {[%emt 0:00:00]} Qc7 {[%emt 0:00:
12]} 15. Bg5 {[%emt 0:00:21]} Ng6 {[%emt 0:00:14]} 16. f4 {[%emt 0:00:08]} Ne8
{[%emt 0:00:24]} 17. f5 {[%emt 0:00:00]} Ne5 {[%emt 0:00:00]} 18. Be7 {[%emt 0:
00:09]} Bxa4 {[%emt 0:00:00]} 19. Nxa4 {[%emt 0:00:31]} Qxe7 {[%emt 0:00:00]}
20. Nxb6 {[%emt 0:00:00]} Rb8 {[%emt 0:00:00]} 21. Na4 {[%emt 0:00:13]} Nf6 {
[%emt 0:00:16]} 22. Qc2 {[%emt 0:00:00]} Rb4 {[%emt 0:00:03]} 23. Nc3 {[%emt 0:
00:00]} Qb7 {[%emt 0:00:03]} 24. Rfb1 {[%emt 0:00:14]} c4 {[%emt 0:00:00]} 25.
Ra2 {[%emt 0:00:09]} Qb6+ {[%emt 0:00:00]} 26. Kh1 {[%emt 0:00:04]} Nfg4 {
[%emt 0:00:01]} 27. Bxg4 {[%emt 0:00:00]} Nxg4 {[%emt 0:00:06]} 28. h3 {
[%emt 0:00:00]} Ne5 {[%emt 0:00:24]} 29. f6 {[%emt 0:00:08]} Rb8 {[%emt 0:00:
00]} 30. Qd2 {[%emt 0:00:06]} gxf6 {[%emt 0:00:11]} 31. Qf4 {[%emt 0:00:00]}
Ng6 {[%emt 0:00:11]} 32. Qxf6 {[%emt 0:00:02]} Qe3 {[%emt 0:00:02]} 33. Rf1 {
[%emt 0:00:22]} R4b7 {[%emt 0:00:07]} 34. Qxd6 {[%emt 0:00:00]} Rxb2 {[%emt 0:
00:03]} 35. Rxb2 {[%emt 0:00:06]} Rxb2 {[%emt 0:00:00]} 36. Qd8+ {[%emt 0:00:
00]} Nf8 {[%emt 0:00:00]} 37. Qf6 {[%emt 0:00:02]} Rb7 {[%emt 0:00:07]} 38. d6
{[%emt 0:00:04]} Qd3 {[%emt 0:00:09]} 39. Nd5 {[%emt 0:00:05]} Ng6 {[%emt 0:00:
00]} 40. Ne7+ {[%emt 0:00:03]} Nxe7 {[%emt 0:00:00]} 41. Qxf7+ {[%emt 0:00:00]}
Kh8 {[%emt 0:00:03]} 42. dxe7 {[%emt 0:00:12]} Qd8 {[%emt 0:00:00]} 1/2-1/2